Cogmind - Beta 14 @@@ ROGUE MODE // 2024.08.22 @ 22:27:18 Player: Parra Result: Destroyed by G-47 Trooper with Particle Gun Performance ------------- Evolutions (1) 500 Regions Visited (3) 600 Robots Destroyed (6) 30 Value Destroyed (191) 191 Prototype IDs (2) 40 Alien Tech Used (0) 0 Bonus (200) 200 TOTAL SCORE: 1561 Bonus ------- Pacifist 200 Cogmind --------- Core Integrity 0/400 Matter 265/300 Energy 79/100 System Corruption 0% Temperature Cool (15) Movement Core (50) Location -9/Storage Parts ------- > --- POWER (1) -------- (None) > --- PROPULSION (3) --- (None) > --- UTILITY (3) ------ Terrain Scan Processor Seismic Detector > --- WEAPON (2) ------- EM Pulse Gun > --- INVENTORY (5) ---- Small Storage Unit Improved Targeting Computer Mace Peak State ------------ > --- POWER ------------ Ion Engine > --- PROPULSION ------- Aluminum Leg Aluminum Leg > --- UTILITY ---------- Small Storage Unit Terrain Scan Processor Seismic Detector > --- WEAPON ----------- Medium Laser Light Assault Rifle > --- INVENTORY -------- EM Pulse Gun Grenade Launcher [Rating: 9] Favorites ----------- Power Ion Engine Engine Ion Engine Propulsion Aluminum Leg Leg Aluminum Leg Utility Small Storage Unit Device Seismic Detector Storage Small Storage Unit Processor Terrain Scan Processor Weapon Light Assault Rifle Energy Gun Medium Laser Ballistic Gun Light Assault Rifle Launcher Grenade Launcher Build | -11 -10 -9 -9 ------- Run | Yrd Mat Mat Sto Slots Evolved 2 | . . 2 . Power . | . . . . Propulsion 1 | . . 1 . Utility 1 | . . 1 . Weapon . | . . . . Parts Attached 10 | 6 . 2 2 Power 1 | 1 . . . Engine 1 | 1 . . . Core . | . . . . Reactor . | . . . . Propulsion 2 | 2 . . . Treads . | . . . . Leg 2 | 2 . . . Wheel . | . . . . Hover . | . . . . Flight . | . . . . Utility 3 | 1 . 2 . Device 1 | . . 1 . Storage 1 | 1 . . . Processor 1 | . . 1 . Hackware . | . . . . Protection . | . . . . Artifact . | . . . . Weapon 4 | 2 . . 2 Energy Gun 2 | 1 . . 1 Energy Cannon . | . . . . Ballistic Gun 1 | 1 . . . Ballistic Cannon . | . . . . Launcher 1 | . . . 1 Special Weapon . | . . . . Impact Weapon . | . . . . Slashing Weapon . | . . . . Piercing Weapon . | . . . . Special Melee Weapon . | . . . . Unidentified Prototypes . | . . . . Parts Lost 6 | . . . 6 Power 1 | . . . 1 Propulsion 2 | . . . 2 Utility . | . . . . Weapon 3 | . . . 3 Highest Loss Streak 5 | . . . 5 To Critical Strikes . | . . . . Average Slot Usage (%) 77 | . 85 80 71 Engine 11 | . 14 11 9 Leg 18 | . 28 22 11 Device 6 | . . 7 11 Storage 10 | . 14 11 7 Processor 6 | . . 7 11 Energy Gun 11 | . 14 11 10 Ballistic Gun 11 | . 14 11 10 Peak Build Rating 9 | 6 6 9 9 Average Rating 6 | 4 6 8 7 On Entrance 5 | . 6 6 9 Naked Turns . | . . . . Heaviest Build 14 | 13 13 14 14 Greatest Support 20 | 20 20 20 20 Greatest Overweight (x) 1 | . . . 1 Average Overweight (x) . | . . . . Largest Inventory Capacity 8 | 8 8 8 8 Average Capacity 7 | 6 8 8 7 Most Carried 5 | 2 1 2 5 Average Carried 1 | . . 1 2 Final Capacity 8 | 8 8 8 5 Final Carried 3 | . 1 2 3 Class Distribution -------------------- 100% | Mutant Dominant Class ---------------- Mutant | -10/Materials Mutant | -9/Materials Mutant | -9/Storage Resources | -11 -10 -9 -9 ----------- Run | Yrd Mat Mat Sto Matter Collected 283 | 209 . 19 55 Remotely . | . . . . Salvage Created 204 | . . 57 147 Parts 12 | . . 4 8 Haulers Intercepted . | . . . . Recyclers Shooed . | . . . . Parts Field Recycled . | . . . . Retrieved Matter . | . . . . Parts Self-Destructed . | . . . . Prevented . | . . . . Kills | -11 -10 -9 -9 ------- Run | Yrd Mat Mat Sto Combat Hostiles Destroyed 6 | . . 1 5 Guns 2 | . . 1 1 AOE 4 | . . . 4 Classes Destroyed 3 | . . 1 2 Swarmer 2 | . . . 2 Grunt 2 | . . . 2 Sentry 2 | . . 1 1 Best Kill Streak 4 | . . 1 4 Combat Bots Only 4 | . . 1 4 Max Kills in Single Turn 2 | . . 1 2 Gunslinging . | . . . . Exploded 2 | . . . 2 Melee . | . . . . Uniques/NPCs Destroyed . | . . . . Combat | -11 -10 -9 -9 -------- Run | Yrd Mat Mat Sto Hostile Shots Fired 122 | . 15 26 81 Missed 43 | . 3 12 28 Damage Taken 960 | . 141 204 615 Core 443 | . 37 101 305 Absorbed by Shields . | . . . . Core Remaining (%) 92 | 100 85 . . Volleys Fired 17 | . . 6 11 Largest 2 | . . 2 2 Hottest 70 | . . 70 70 Shots Fired 29 | . . 10 19 Gun 27 | . . 10 17 Cannon . | . . . . Launcher 2 | . . . 2 Special . | . . . . Kinetic 15 | . . 6 9 Thermal 12 | . . 4 8 Explosive 2 | . . . 2 Electromagnetic . | . . . . Robot Hit Streak 10 | . . 2 10 Robot Miss Streak 3 | . . 2 3 Penetration Max . | . . . . Secondary Targets . | . . . . Shots Hit Robots 18 | . . 5 13 Core Hits 13 | . . 2 11 Critical Kills . | . . . . Critical Parts Destroyed . | . . . . Critical Strikes 1 | . . . 1 Burn 1 | . . . 1 Melee Attacks . | . . . . Impact . | . . . . Slashing . | . . . . Piercing . | . . . . Sneak Attacks . | . . . . Combat Hostiles . | . . . . Follow-up Attacks . | . . . . Damage Inflicted 453 | . . 57 396 Guns 189 | . . 57 132 Cannons . | . . . . Explosions 260 | . . . 260 Melee . | . . . . Ramming 4 | . . . 4 Kinetic 79 | . . 20 59 Thermal 110 | . . 37 73 Explosive 260 | . . . 260 Electromagnetic . | . . . . Impact . | . . . . Slashing . | . . . . Piercing . | . . . . Highest Corruption . | . . . . Average Corruption . | . . . . Corruption Purged . | . . . . Corruption Blocked . | . . . . Overload Shots . | . . . . Overflow Damage 6 | . . . 6 Projectiles . | . . . . Explosions 6 | . . . 6 Melee . | . . . . Knockbacks . | . . . . Impact . | . . . . Kinetic . | . . . . Secondary . | . . . . Self-Inflicted Damage 22 | . . . 22 Shots 1 | . . . 1 Rammed 2 | . . . 2 Targets Rammed 3 | . . . 3 Kicked 1 | . . . 1 Crushed . | . . . . Highest Temperature 97 | . . 54 97 Average Temperature 38 | . . 30 42 Received Heat Transfer 351 | . 78 72 201 Siege Activations . | . . . . Robots Corrupted . | . . . . Combat Hostiles . | . . . . Parts Fried . | . . . . Impact Corruptions . | . . . . Robots Melted . | . . . . Combat Hostiles . | . . . . Parts Melted 5 | . . 1 4 Heat Transferred 407 | . . 111 296 Parts Sabotaged . | . . . . Parts Stolen . | . . . . Parts Stripped . | . . . . Power Chain Reactions . | . . . . Alert | -11 -10 -9 -9 ------- Run | Yrd Mat Mat Sto Peak Influence 209 | . 15 65 209 Initial 27 | . . 5 27 Average 32 | . 2 17 65 Maximum Alert Level 1 | . . . 1 Low Security (%) 99 | 100 100 100 98 Level 1 . | . . . 1 Level 2 . | . . . . Level 3 . | . . . . Level 4 . | . . . . Level 5 . | . . . . High Security . | . . . . Max Security . | . . . . Squads Dispatched 3 | . 1 . 2 Investigation 1 | . 1 . . Extermination . | . . . . Reinforcement 2 | . . . 2 Assault . | . . . . Garrison . | . . . . Intercept . | . . . . Searches Triggered . | . . . . Construction Impeded 1 | . . . 1 Haulers Reinforced . | . . . . Active Scanning Responses . | . . . . Cargo Convoy Interrupts . | . . . . Stealth | -11 -10 -9 -9 --------- Run | Yrd Mat Mat Sto Distress Signals . | . . . . Communications Jammed . | . . . . Distress Signals . | . . . . Times Spotted 30 | . 5 4 21 Peak Tracking Total 14 | . 5 3 14 Tactical Retreats 1 | . . . 1 Traps | -11 -10 -9 -9 ------- Run | Yrd Mat Mat Sto Traps Triggered 1 | . 1 . . Indirectly . | . . . . Trap Hack Attempts . | . . . . Triggered . | . . . . Disarmed . | . . . . Reprogrammed 3 | . 3 . . Reused . | . . . . Traps Extracted . | . . . . Installed . | . . . . Triggered . | . . . . Machines | -11 -10 -9 -9 ---------- Run | Yrd Mat Mat Sto Machines Disabled . | . . . . Max in Single Turn . | . . . . Machines Repaired . | . . . . Machines Dismantled . | . . . . Machines Sabotaged . | . . . . Overloaded Fab Kills . | . . . . Hacking | -11 -10 -9 -9 --------- Run | Yrd Mat Mat Sto Machines Accessed 4 | . 1 . 3 Terminals 3 | . 1 . 2 Fabricators . | . . . . Repair Stations 1 | . . . 1 Recycling Units . | . . . . Scanalyzers . | . . . . Garrison Access . | . . . . Total Hacks 13 | . 5 . 8 Successful 7 | . 4 . 3 Failed 6 | . 1 . 5 Catastrophic 1 | . 1 . . Database Lockouts . | . . . . Manual . | . . . . Terminals 10 | . 5 . 5 Fabricators . | . . . . Repair Stations 3 | . . . 3 Recycling Units . | . . . . Scanalyzers . | . . . . Garrison Access . | . . . . Terminal Hacks 6 | . 4 . 2 Prototype ID Bank 1 | . 1 . . Open Door 1 | . . . 1 Locate Traps 1 | . 1 . . Reprogram Traps 1 | . 1 . . Patrol Status 1 | . 1 . . Recall Investigation 1 | . . . 1 Fabricator Hacks . | . . . . Repair Station Hacks 1 | . . . 1 Scan Component 1 | . . . 1 Recycling Unit Hacks . | . . . . Scanalyzer . | . . . . Garrison Access Hacks . | . . . . Unauthorized Hacks . | . . . . Terminals . | . . . . Fabricators . | . . . . Repair Stations . | . . . . Recycling Units . | . . . . Scanalyzers . | . . . . Garrison Access . | . . . . Data Cores Recovered . | . . . . Used . | . . . . Hacking Detections 2 | . . . 2 Full Trace Events . | . . . . Feedback Events . | . . . . Feedback Blocked . | . . . . Robot Schematics Acquired . | . . . . Robots Built . | . . . . Authchips . | . . . . Time . | . . . . Total Robot Build Rating . | . . . . Part Schematics Acquired . | . . . . Parts Built . | . . . . Authchips . | . . . . Time . | . . . . Total Part Build Rating . | . . . . Parts Repaired . | . . . . Time . | . . . . Parts Recycled . | . . . . Recycled Matter . | . . . . Retrieved Matter . | . . . . Retrieved Components . | . . . . Parts Scanalyzed . | . . . . Part Schematics Acquired . | . . . . Parts Damaged . | . . . . Bothacking | -11 -10 -9 -9 ------------ Run | Yrd Mat Mat Sto Used RIF Installer . | . . . . Robots Hacked . | . . . . Non-combat . | . . . . Combat . | . . . . Robot Hacks Applied . | . . . . Relay Couplers Released . | . . . . Fabnet Peak Effective % . | . . . . Robots Rewired . | . . . . Allies Hacked . | . . . . Hacks Repelled . | . . . . Allies | -11 -10 -9 -9 -------- Run | Yrd Mat Mat Sto Total Allies . | . . . . Largest Group . | . . . . Highest-Rated Group . | . . . . Highest-Rated Ally . | . . . . Total Orders . | . . . . Ally Attacks . | . . . . Total Damage . | . . . . Kills . | . . . . Allies Corrupted . | . . . . Allies Melted . | . . . . Intel | -11 -10 -9 -9 ------- Run | Yrd Mat Mat Sto Robot Analysis Total . | . . . . Derelict Logs Recovered . | . . . . Drone Launches . | . . . . Drone Recoveries . | . . . . Exploration | -11 -10 -9 -9 ------------- Run | Yrd Mat Mat Sto Turns Passed 704 | 64 199 145 296 Spaces Moved 496 | 46 164 106 180 Core 38 | 11 . . 27 Treads . | . . . . Legs 458 | 35 164 106 153 Wheels . | . . . . Hover . | . . . . Flight . | . . . . Fastest Speed 50 | 50 120 120 50 Average Speed 126 | 103 120 120 143 Slowest Speed 190 | 120 120 120 190 Overloaded Moves . | . . . . Propulsion Burnouts . | . . . . Robots Hopped . | . . . . Cave-ins Triggered . | . . . . Exploration Rate (%) 19 | 4 32 9 34 Regions Visited 3 Branch Regions 1 Pre-discovered Areas . | . . . . Known Exits Taken . | . . . . Unknown Exits Taken 3 | 1 1 1 . Scrap Searched . | . . . . Spaces Dug . | . . . . Terrain Destroyed 15 | . . . 15 Melee . | . . . . Projectile . | . . . . AOE 15 | . . . 15 Terrain Rammed . | . . . . Walls Destroyed . | . . . . Machines Disabled . | . . . . Actions | -11 -10 -9 -9 --------- Run | Yrd Mat Mat Sto Total 542 | 60 166 114 202 Wait 12 | 7 2 . 3 Move 493 | 45 163 105 180 Hop . | . . . . Pick Up 6 | 2 1 1 2 Fast Attach 6 | 4 . 2 . Attach 4 | 2 . . 2 Detach 1 | . . . 1 Swap . | . . . . Drop . | . . . . Fire 17 | . . 6 11 Melee . | . . . . Ram 2 | . . . 2 Kick 1 | . . . 1 Crush . | . . . . Escape Stasis . | . . . . Rewire . | . . . . Trap . | . . . . Miscellaneous . | . . . . Route ------- -11/Scrapyard -10/Materials -9/Materials -9/Storage History --------- Turn | Location | Event 3 | -11/Scrapyard | Discovered new exit (range 16) 65 | -11/Scrapyard | Entered Materials 237 | -10/Materials | Discovered new exit (range 16) 264 | -10/Materials | Entered another Materials area 264 | -9/Materials | Evolved 2 slots: Propulsion x1, Utility x1 331 | -9/Materials | Build established: Mutant 376 | -9/Materials | Discovered new exit (range 16) 409 | -9/Materials | Entered Storage 684 | -9/Storage | Core integrity fell below 50% 702 | -9/Storage | Core integrity fell below 20% 705 | -9/Storage | Destroyed by G-47 Trooper with Particle Gun Last Messages --------------- Med. Laser destroyed. C-30 ARC bursts open, deploying its payload. G-47 Trooper unfolds itself. G-34 Mercenary unfolds itself. G-47 Trooper destroyed. G-34 Mercenary destroyed. Destroyed Heat Sink. ALERT: Construction progress impeded, dispatching reinforcements to local area. K-01 Serf collects debris. C-30 ARC bursts open, deploying its payload. G-47 Trooper unfolds itself. G-34 Mercenary unfolds itself. Critical hit (Burn: +37). S-10 Pest destroyed. Grenade Launcher destroyed. Destroyed Grenade Launcher. K-01 Serf collects debris. U-05 Engineer lays Concrete. U-05 Engineer builds a Wall. Map ----- +----------------------------------------------------+ | #T##### #???????????#######?????????????????? | | # !## #???????????#"""""#?????????????????? | | + !!## #?????????###""T""###???????????????? | | # !!## #???#####?# #???????????????? | | ####### #???#"""#?# #???????????????? | | #?????# #####"T"### % #???????????????? | | #?????# # % #???????????????? | | #?????# +%""" """ #???????????????? | | #?????# # """ """ #???????????????? | | #+#####??########## # """ """ #???????????????? | | #???????????# # #??????????????? | | #???????????# ##/######/#####??????????????? | | """ #???????????# # #??????????????? | | ??"" #???????????# # #??????????????? | | ???"" #???????????# # #??????????????? | | "???" #???????????T # #??????????????? | | ""??" #???????????# # #??????????????? | | """" #???????????# # #??????????????? | | #???????????# #########/#####??????????????? | | ##+####???????????# ??????# ##???????????????? | | ?# #??????????????? ??????# T=% #???????????????? | | ?# #??????????????? ??????# ""%* #???????????????? | | ?# #??????????????????????# #???????????????? | | ?# #??????????????????????# #???????????????? | | ?# ???????????####+######## #???????????????? | | ?# ???????????# @ # #?????????????????? | | ?# ???????????# #?????????????????? | | ?? ???????????# u % ""??????????? | | ?? ???????????# ==g%g|| """?????????? | | ?? ???????????# gg#[u| ""??????????? | | ??##???????????# # % uY| a""??????????? | | ???????????????# ??????????? | | ???????????????############ # ????????? | | ???????????????????????????# ### ######????????? | | ???????????????????????????? #??##?????????????? | | ???????????????????????????? #?????????????????? | | ???????????????????????????? #?????????????????? | | ???????????????????????????? #?????????????????? | | ???????????????????????????? "?????????????????? | | ???????????????????????????? ?????????????????? | | ???????????????????????????? "?????????????????? | | ????????????????????????????? ???????????????????? | | ?????????????????????????????????????????????????? | | ?????????????????????????????????????????????????? | | ?????????????????????????????????????????????????? | | ?????????????????????????????????????????????????? | | ?????????????????????????????????????????????????? | | ?????????????????????????????????????????????????? | | ?????????????????????????????????????????????????? | | ?????????????????????????????????????????????????? | +----------------------------------------------------+ Best States ------------- Heat Dissipation 28 Energy Generation 10 Energy Capacity 250 Matter Stores 300 Matter Capacity 300 Sight Range 16 Terrain Scan Density 85 Evasion (%) 55 Item Schematics ----------------- None Robot Schematics ------------------ None Fabricated ------------ Nothing Alien Tech Used ----------------- None Achievements -------------- None Challenges ------------ None Game ------ Seed JunkFusionAxe Manual? 0 Play Time 00:16:33 Cumulative 4.7 hours Start 2024.08.22 @ 21:02:41 End 2024.08.22 @ 22:27:18 Sessions 3 Manual Loads 0 Difficulty Rogue Special Mode None Game No. 4 Rogue 4 Adventurer 0 Explorer 0 Win Type - Total 0 Types 0/0/0/0/0/0/0/0/0 Lore% 3 Gallery% 6 Achievement% 8 Wizard Run 0 Options --------- Layout 1 ASCII 0 Keyboard 1 Movement Numpad Keybinds 0 Fullscreen 1 Font 24/Smallcaps Map View 50x35 Zoom Use 0% Tactical HUD 0 Map Filters NONE Filters NONE Steam 1 RUN: 4d0cafe1-1223-49f1-aec4-43e083f85dba